fUST/lending_fUST_20250904
["ID","MTS","AMOUNT","RATE_DAILY","PERIOD"]
[383545700,1756985448674,-633.0,0.00013928,2]
[383545701,1756985448683,-2159.74,0.00013928,2]
[383545702,1756985448693,-409.0,0.00013928,2]
[383545703,1756985448703,-425.265,0.00013928,2]
[383545704,1756985448713,-150.0,0.00013957,2]
[383545705,1756985448723,-250.0,0.00013957,2]
[383545706,1756985448733,-208.766,0.00013957,2]
[383545707,1756985448744,-224.481,0.00013957,2]
[383545708,1756985448755,-250.0,0.00013957,2]
[383545709,1756985448764,-249.1,0.00013957,2]
[383545710,1756985448774,-250.648,0.00013957,2]
[383545711,1756985448784,-262.104,0.00013957,2]
[383545712,1756985448793,-246.0,0.00013957,2]
[383545713,1756985448802,-221.273,0.00013957,2]
[383545714,1756985448814,-160.6548987,0.00013971,2]
[383545715,1756985448823,-151.0,0.00013972,2]
[383545716,1756985448832,-152.0140183,0.00013972,2]
[383545717,1756985448842,-151.0,0.00013972,2]
[383545718,1756985448852,-151.0,0.00013972,2]
[383545719,1756985448861,-151.0,0.00013972,2]
[383545720,1756985448871,-151.0,0.00013972,2]
[383545721,1756985448882,-500.0,0.00013972,2]
[383545722,1756985448891,-151.0,0.00013972,2]
[383545723,1756985448901,-151.0,0.00013972,2]
[383545724,1756985448911,-151.0,0.00013972,2]
[383545725,1756985448921,-151.0,0.00013972,2]
[383545726,1756985448931,-151.0,0.00013972,2]
[383545727,1756985448940,-530.0,0.00013972,2]
[383545728,1756985448949,-151.0,0.00013972,2]
[383545729,1756985448959,-500.0,0.00013972,2]
[383545730,1756985448968,-151.0,0.00013972,2]
[383545731,1756985448977,-480.0,0.00013972,2]
[383545732,1756985448988,-533.26293903,0.00013972,2]
[383545733,1756985448998,-480.0,0.00013972,2]
[383545734,1756985449007,-480.0,0.00013972,2]
[383545735,1756985449017,-480.0,0.00013972,2]
[383545736,1756985449026,-480.0,0.00013972,2]
[383545737,1756985449037,-480.0,0.00013972,2]
[383545738,1756985449046,-266.7,0.00013972,2]
[383545739,1756985449055,-480.0,0.00013972,2]
[383545740,1756985449065,-445.82257111,0.00013972,2]
[383545741,1756985449075,-480.0,0.00013972,2]
[383545742,1756985449086,-372.73,0.00013972,2]
[383545743,1756985449096,-199.58,0.00013972,2]
[383545744,1756985449106,-480.0,0.00013972,2]
[383545745,1756985449117,-480.0,0.00013972,2]
[383545746,1756985449127,-480.0,0.00013972,2]
[383545747,1756985449137,-480.0,0.00013972,2]
[383545748,1756985449147,-508.05546686,0.00013972,2]
[383545749,1756985449157,-480.0,0.00013972,2]
[383545750,1756985449166,-621.77820281,0.00013972,2]
[383545751,1756985449176,-470.55,0.00013972,2]
[383545752,1756985449185,-480.0,0.00013972,2]
[383545753,1756985449195,-480.0,0.00013972,2]
[383545754,1756985449204,-480.0,0.00013972,2]
[383545755,1756985449214,-480.0,0.00013972,2]
[383545756,1756985449223,-480.0,0.00013972,2]
[383545757,1756985449234,-480.0,0.00013972,2]
[383545758,1756985449244,-480.0,0.00013972,2]
[383545759,1756985449255,-480.0,0.00013972,2]
[383545760,1756985449265,-480.0,0.00013972,2]
[383545761,1756985449276,-480.0,0.00013972,2]
[383545762,1756985449286,-254.69477815,0.00013972,2]
[383545763,1756985449296,-480.0,0.00013972,2]
[383545764,1756985449307,-480.0,0.00013972,2]
[383545765,1756985449317,-480.0,0.00013972,2]
[383545766,1756985449327,-480.0,0.00013972,2]
[383545767,1756985449338,-554.49,0.00013972,2]
[383545768,1756985449348,-480.0,0.00013972,2]
[383545769,1756985449358,-675.02,0.00013972,2]
[383545770,1756985449368,-820.51,0.00013972,2]
[383545771,1756985449377,-430.5151203,0.00013972,2]
[383545772,1756985449387,-480.0,0.00013972,2]
[383545773,1756985449398,-480.0,0.00013972,2]
[383545774,1756985449407,-480.0,0.00013972,2]
[383545775,1756985449418,-480.0,0.00013972,2]
[383545776,1756985449428,-480.0,0.00013972,2]
[383545777,1756985449438,-480.0,0.00013972,2]
[383545778,1756985449450,-480.0,0.00013972,2]
[383545779,1756985449460,-480.0,0.00013972,2]
[383545780,1756985449470,-480.0,0.00013972,2]
[383545781,1756985449480,-480.0,0.00013972,2]
[383545782,1756985449490,-480.0,0.00013972,2]
[383545783,1756985449499,-1273.42,0.00013972,2]
[383545784,1756985449509,-480.0,0.00013972,2]
[383545785,1756985449518,-480.0,0.00013972,2]
[383545786,1756985449527,-546.52,0.00013972,2]
[383545787,1756985449536,-480.0,0.00013972,2]
[383545788,1756985449546,-480.0,0.00013972,2]
[383545789,1756985449555,-483.88805826,0.00013972,2]
[383545790,1756985449564,-480.0,0.00013972,2]
[383545791,1756985449574,-228.12257657,0.00013972,2]
[383545792,1756985449583,-480.0,0.00013972,2]
[383545793,1756985449593,-480.0,0.00013972,2]
[383545794,1756985449602,-480.0,0.00013972,2]
[383545795,1756985449613,-163.75058258,0.00013972,2]
[383545796,1756985449624,-480.0,0.00013972,2]
[383545797,1756985449636,-480.0,0.00013972,2]
[383545798,1756985449647,-2489.76,0.00013972,2]
[383545799,1756985449657,-343.08887986,0.00013972,2]
[383545800,1756985449667,-480.0,0.00013972,2]
[383545801,1756985449677,-480.0,0.00013972,2]
[383545802,1756985449687,-194.10620953,0.00013972,2]
[383545803,1756985449697,-480.0,0.00013972,2]
[383545804,1756985449707,-480.0,0.00013972,2]
[383545805,1756985449717,-480.0,0.00013972,2]
[383545806,1756985449728,-169.35295248,0.00013972,2]
[383545807,1756985449738,-480.0,0.00013972,2]
[383545808,1756985449836,-480.0,0.00013972,2]
[383545809,1756985449846,-486.26,0.00013972,2]
[383545810,1756985449855,-480.0,0.00013972,2]
[383545811,1756985449864,-482.16185283,0.00013972,2]
[383545812,1756985449874,-485.46532245,0.00013972,2]
[383545813,1756985449883,-481.70470394,0.00013972,2]
[383545814,1756985449893,-480.0,0.00013972,2]
[383545815,1756985449902,-480.0,0.00013972,2]
[383545816,1756985449912,-483.17675028,0.00013972,2]
[383545817,1756985449922,-480.0,0.00013972,2]
[383545818,1756985449931,-480.0,0.00013972,2]
[383545819,1756985449940,-483.10175735,0.00013972,2]
[383545820,1756985449949,-480.0,0.00013972,2]
[383545821,1756985449959,-480.0,0.00013972,2]
[383545822,1756985449968,-480.0,0.00013972,2]
[383545823,1756985449978,-480.0,0.00013972,2]
[383545824,1756985449987,-549.24,0.00013972,2]
[383545825,1756985449996,-480.0,0.00013972,2]
[383545826,1756985450007,-480.0,0.00013972,2]
[383545827,1756985450016,-480.0,0.00013972,2]
[383545828,1756985450025,-560.93254795,0.00013972,2]
[383545829,1756985450034,-584.91145574,0.00013972,2]
[383545830,1756985450044,-480.0,0.00013972,2]
[383545831,1756985450054,-480.0,0.00013972,2]
[383545832,1756985450063,-480.0,0.00013972,2]
[383545833,1756985450072,-480.0,0.00013972,2]
[383545834,1756985450083,-480.0,0.00013972,2]
[383545835,1756985450092,-480.0,0.00013972,2]
[383545836,1756985450101,-480.0,0.00013972,2]
[383545837,1756985450109,-480.0,0.00013972,2]
[383545838,1756985450119,-480.0,0.00013972,2]
[383545839,1756985450129,-480.0,0.00013972,2]
[383545840,1756985450143,-480.0,0.00013972,2]
[383545841,1756985450155,-480.0,0.00013972,2]
[383545842,1756985450165,-480.0,0.00013972,2]
[383545843,1756985450174,-483.46564549,0.00013972,2]
[383545844,1756985450183,-485.12548743,0.00013972,2]
[383545845,1756985450192,-612.27,0.00013972,2]
[383545846,1756985450202,-480.0,0.00013972,2]
[383545847,1756985450212,-328.59548206,0.00013972,2]
[383545848,1756985450222,-480.0,0.00013972,2]
[383545849,1756985450235,-192.93422364,0.00013972,2]
[383545850,1756985450245,-540.99,0.00013972,2]
[383545851,1756985450255,-480.0,0.00013972,2]
[383545852,1756985450265,-480.0,0.00013972,2]
[383545853,1756985450274,-480.0,0.00013972,2]
[383545854,1756985450284,-480.0,0.00013972,2]
[383545855,1756985450293,-480.0,0.00013972,2]
[383545856,1756985450302,-480.0,0.00013972,2]
[383545857,1756985450312,-480.0,0.00013972,2]
[383545858,1756985450321,-480.0,0.00013972,2]
[383545859,1756985450331,-480.0,0.00013972,2]
[383545860,1756985450341,-480.0,0.00013972,2]
[383545861,1756985450350,-160.65272493,0.00013972,2]
[383545862,1756985450360,-662.65,0.00013972,2]
[383545863,1756985450369,-480.0,0.00013972,2]
[383545864,1756985450378,-480.0,0.00013972,2]
[383545865,1756985450390,-480.0,0.00013972,2]
[383545866,1756985450400,-480.0,0.00013972,2]
[383545867,1756985450411,-480.0,0.00013972,2]
[383545868,1756985450423,-675.44,0.00013972,2]
[383545869,1756985450434,-480.0,0.00013972,2]
[383545870,1756985450446,-480.0,0.00013972,2]
[383545871,1756985450457,-480.0,0.00013972,2]
[383545872,1756985450468,-480.0,0.00013972,2]
[383545873,1756985450478,-480.0,0.00013972,2]
[383545874,1756985450489,-480.0,0.00013972,2]
[383545875,1756985450499,-568.87802622,0.00013972,2]
[383545876,1756985450510,-480.0,0.00013972,2]
[383545877,1756985450521,-480.0,0.00013972,2]
[383545878,1756985450531,-480.0,0.00013972,2]
[383545879,1756985450541,-480.0,0.00013972,2]
[383545880,1756985450551,-480.0,0.00013972,2]
[383545881,1756985450561,-2659.8,0.00013972,2]
[383545882,1756985450571,-1059.07,0.00013972,2]
[383545883,1756985450580,-590.89,0.00013972,2]
[383545884,1756985450590,-485.40503868,0.00013972,2]
[383545885,1756985450600,-480.0,0.00013972,2]
[383545886,1756985450611,-480.0,0.00013972,2]
[383545887,1756985450621,-480.0,0.00013972,2]
[383545888,1756985450640,-480.0,0.00013972,2]
[383545889,1756985450649,-480.0,0.00013972,2]
[383545890,1756985450659,-341.28590238,0.00013972,2]
[383545891,1756985450670,-480.0,0.00013972,2]
[383545892,1756985450680,-989.0,0.00013972,2]
[383545893,1756985450689,-480.0,0.00013972,2]
[383545894,1756985450699,-480.0,0.00013972,2]
[383545895,1756985450710,-480.0,0.00013972,2]
[383545896,1756985450720,-480.0,0.00013972,2]
[383545897,1756985450729,-1126.5,0.00013972,2]
[383545898,1756985450739,-1348.52,0.00013972,2]
[383545899,1756985450748,-647.31,0.00013972,2]
[383545900,1756985450757,-480.0,0.00013972,2]
[383545901,1756985450766,-550.21,0.00013972,2]
[383545902,1756985450775,-477.96302787,0.00013972,2]
[383545903,1756985450784,-239.63918794,0.00013972,2]
[383545904,1756985450794,-484.9937741,0.00013972,2]
[383545905,1756985450803,-169.19232002,0.00013972,2]
[383545906,1756985450812,-480.0,0.00013972,2]
[383545907,1756985450821,-1708.96,0.00013972,2]
[383545908,1756985450831,-484.91118053,0.00013972,2]
[383545909,1756985450840,-480.0,0.00013972,2]
[383545910,1756985450850,-480.0,0.00013972,2]
[383545911,1756985450859,-480.0,0.00013972,2]
[383545912,1756985450868,-480.0,0.00013972,2]
[383545913,1756985450878,-480.0,0.00013972,2]
[383545914,1756985450889,-1813.81,0.00013972,2]
[383545915,1756985450899,-480.0,0.00013972,2]
[383545916,1756985450908,-204.74941233,0.00013972,2]
[383545917,1756985450917,-480.0,0.00013972,2]
[383545918,1756985450926,-480.0,0.00013972,2]
[383545919,1756985450936,-480.0,0.00013972,2]
[383545920,1756985450945,-480.0,0.00013972,2]
[383545921,1756985450954,-520.21,0.00013972,2]
[383545922,1756985450963,-480.0,0.00013972,2]
[383545923,1756985450973,-480.0,0.00013972,2]
[383545924,1756985450982,-480.0,0.00013972,2]
[383545925,1756985450992,-480.0,0.00013972,2]
[383545926,1756985451001,-480.0,0.00013972,2]
[383545927,1756985451012,-489.94586858,0.00013972,2]
[383545928,1756985451021,-480.0,0.00013972,2]
[383545929,1756985451031,-481.75557804,0.00013972,2]
[383545930,1756985451040,-480.0,0.00013972,2]
[383545931,1756985451050,-484.81429482,0.00013972,2]
[383545932,1756985451059,-333.04955611,0.00013972,2]
[383545933,1756985451069,-480.0,0.00013972,2]
[383545934,1756985451079,-484.40588719,0.00013972,2]
[383545935,1756985451088,-480.0,0.00013972,2]
[383545936,1756985451097,-480.0,0.00013972,2]
[383545937,1756985451108,-1528.19,0.00013972,2]
[383545938,1756985451117,-480.0,0.00013972,2]
[383545939,1756985451127,-480.0,0.00013972,2]
[383545940,1756985451140,-480.0,0.00013972,2]
[383545941,1756985451149,-480.0,0.00013972,2]
[383545942,1756985451160,-480.0,0.00013972,2]
[383545943,1756985451169,-480.0,0.00013972,2]
[383545944,1756985451179,-480.0,0.00013972,2]
[383545945,1756985451189,-480.0,0.00013972,2]
[383545946,1756985451198,-181.60980487,0.00013972,2]
[383545947,1756985451208,-480.0,0.00013972,2]
[383545948,1756985451218,-289.54057073,0.00013972,2]
[383545949,1756985451227,-480.0,0.00013972,2]
[383545950,1756985451237,-480.0,0.00013972,2]
[383545951,1756985451246,-480.0,0.00013972,2]
[383545952,1756985451256,-480.0,0.00013972,2]
[383545953,1756985451265,-1532.77,0.00013972,2]
[383545954,1756985451275,-480.0,0.00013972,2]
[383545955,1756985451284,-480.0,0.00013972,2]
[383545956,1756985451293,-480.0,0.00013972,2]
[383545957,1756985451302,-480.0,0.00013972,2]
[383545958,1756985451311,-480.0,0.00013972,2]
[383545959,1756985451321,-481.66436693,0.00013972,2]
[383545960,1756985451330,-291.40435406,0.00013972,2]
[383545961,1756985451340,-480.0,0.00013972,2]
[383545962,1756985451349,-741.01,0.00013972,2]
[383545963,1756985451359,-482.7276579,0.00013972,2]
[383545964,1756985451369,-480.0,0.00013972,2]
[383545965,1756985451378,-480.0,0.00013972,2]
[383545966,1756985451388,-480.0,0.00013972,2]
[383545967,1756985451398,-480.0,0.00013972,2]
[383545968,1756985451407,-2001.23,0.00013972,2]
[383545969,1756985451417,-480.0,0.00013972,2]
[383545970,1756985451426,-482.95878034,0.00013972,2]
[383545971,1756985451436,-480.0,0.00013972,2]
[383545972,1756985451446,-480.0,0.00013972,2]
[383545973,1756985451456,-480.0,0.00013972,2]
[383545974,1756985451465,-480.0,0.00013972,2]
[383545975,1756985451475,-480.0,0.00013972,2]
[383545976,1756985451484,-480.0,0.00013972,2]
[383545977,1756985451493,-1054.07,0.00013972,2]
[383545978,1756985451503,-480.0,0.00013972,2]
[383545979,1756985451512,-480.0,0.00013972,2]
[383545980,1756985451521,-722.05,0.00013972,2]
[383545981,1756985451531,-484.53797555,0.00013972,2]
[383545982,1756985451540,-480.0,0.00013972,2]
[383545983,1756985451549,-480.0,0.00013972,2]
[383545984,1756985451559,-480.0,0.00013972,2]
[383545985,1756985451568,-480.0,0.00013972,2]
[383545986,1756985451577,-480.0,0.00013972,2]
[383545987,1756985451587,-483.38554135,0.00013972,2]
[383545988,1756985451596,-480.0,0.00013972,2]
[383545989,1756985451606,-529.51,0.00013972,2]
[383545990,1756985451615,-481.94000333,0.00013972,2]
[383545991,1756985451628,-480.0,0.00013972,2]
[383545992,1756985451639,-480.0,0.00013972,2]
[383545993,1756985451648,-267.4274582,0.00013972,2]
[383545994,1756985451658,-480.0,0.00013972,2]
[383545995,1756985451667,-480.0,0.00013972,2]
[383545996,1756985451676,-480.0,0.00013972,2]
[383545997,1756985451685,-497.18,0.00013972,2]
[383545998,1756985451781,-347.25596269,0.00013972,2]
[383545999,1756985451791,-480.0,0.00013972,2]
[383546000,1756985451800,-480.0,0.00013972,2]
[383546001,1756985451810,-480.0,0.00013972,2]
[383546002,1756985451819,-575.53,0.00013972,2]
[383546003,1756985451829,-1638.94,0.00013972,2]
[383546004,1756985451838,-481.70191099,0.00013972,2]
[383546005,1756985451847,-480.0,0.00013972,2]
[383546006,1756985451856,-480.0,0.00013972,2]
[383546007,1756985451865,-2086.58,0.00013972,2]
[383546008,1756985451875,-480.0,0.00013972,2]
[383546009,1756985452092,-480.0,0.00013972,2]
[383546010,1756985452102,-253.42359675,0.00013972,2]
[383546011,1756985452112,-480.0,0.00013972,2]
[383546012,1756985452121,-480.0,0.00013972,2]
[383546013,1756985452132,-2305.41,0.00013972,2]
[383546014,1756985452141,-480.0,0.00013972,2]
[383546015,1756985452151,-480.0,0.00013972,2]
[383546016,1756985452161,-480.0,0.00013972,2]
[383546017,1756985452170,-480.0,0.00013972,2]
[383546018,1756985452179,-480.0,0.00013972,2]
[383546019,1756985452189,-4406.53,0.00013972,2]
[383546020,1756985452199,-480.0,0.00013972,2]
[383546021,1756985452209,-480.0,0.00013972,2]
[383546022,1756985452218,-1015.83,0.00013972,2]
[383546023,1756985452228,-480.0,0.00013972,2]
[383546024,1756985452238,-1985.99,0.00013972,2]
[383546025,1756985452247,-480.0,0.00013972,2]
[383546026,1756985452257,-529.6,0.00013972,2]
[383546027,1756985452266,-480.0,0.00013972,2]
[383546028,1756985452275,-480.0,0.00013972,2]
[383546029,1756985452284,-637.46,0.00013972,2]
[383546030,1756985452294,-500.0,0.00013972,2]
[383546031,1756985452303,-500.0,0.00013973,2]
[383546032,1756985452313,-609.30197957,0.00013973,2]
[383546033,1756985452323,-500.0,0.00013973,2]
[383546034,1756985452332,-501.38118317,0.00013973,2]
[383546035,1756985452341,-500.61081285,0.00013973,2]
[383546036,1756985452352,-501.82497982,0.00013973,2]
[383546037,1756985452362,-500.0,0.00013973,2]
[383546038,1756985452371,-501.25187764,0.00013973,2]
[383546039,1756985452381,-500.0,0.00013973,2]
[383546040,1756985452391,-500.0,0.00013973,2]
[383546041,1756985452400,-411.44800097,0.00013973,2]
[383546042,1756985452410,-638.80896229,0.00013973,2]
[383546043,1756985452420,-501.46412833,0.00013973,2]
[383546044,1756985452430,-500.0,0.00013973,2]
[383546045,1756985452440,-213.7467389,0.00013973,2]
[383546046,1756985452450,-500.0,0.00013973,2]
[383546047,1756985452459,-500.0,0.00013973,2]
[383546048,1756985452468,-500.0,0.00013973,2]
[383546049,1756985452477,-500.0,0.00013973,2]
[383546050,1756985452487,-500.0,0.00013973,2]
[383546051,1756985452496,-500.0,0.00013973,2]
[383546052,1756985452506,-500.0,0.00013973,2]
[383546053,1756985452515,-500.0,0.00013973,2]
[383546054,1756985452524,-500.0,0.00013973,2]
[383546055,1756985452534,-500.0,0.00013973,2]
[383546056,1756985452543,-500.0,0.00013973,2]
[383546057,1756985452554,-500.0,0.00013973,2]
[383546058,1756985452563,-335.41328946,0.00013973,2]
[383546059,1756985452573,-500.0,0.00013973,2]
[383546060,1756985452582,-500.0,0.00013973,2]
[383546061,1756985452592,-500.0,0.00013973,2]
[383546062,1756985452602,-6088.05676544,0.0001399,2]
[383546063,1756985452612,-2753.38,0.00013997,2]
[383546064,1756985452621,-5000.0,0.00013998,2]
[383546065,1756985452634,-6000.0,0.00014007,2]
[383546066,1756985452644,-3000.0,0.0001404,2]
[383546067,1756985452653,-280.0,0.00014041,2]
[383546068,1756985452662,-168.0,0.00014067,2]
[383546069,1756985452672,-151.0,0.000141,2]
[383546070,1756985452681,-151.0,0.000141,2]
[383546071,1756985452691,-436.0,0.00014109,2]
[383546072,1756985452701,-168.0,0.00014191,2]
[383546073,1756985452710,-320.0,0.00014198,2]
[383546074,1756985452719,-151.0,0.000142,2]
[383546075,1756985452728,-151.0,0.000142,2]
[383546076,1756985452738,-320.0,0.00014217,2]
[383546077,1756985452747,-1000.0,0.00014221,2]
[383546078,1756985452756,-1000.0,0.00014221,2]
[383546079,1756985452765,-208.95804815,0.00014238,2]
[383546080,1756985452775,-151.0,0.00014246,2]
[383546081,1756985452784,-226.9344424,0.00014246,2]
[383546082,1756985452793,-151.0,0.00014246,2]
[383546083,1756985452803,-151.0,0.00014246,2]
[383546084,1756985452812,-208.0,0.00014246,2]
[383546085,1756985452822,-208.0,0.00014246,2]
[383546086,1756985452832,-151.0,0.00014246,2]
[383546087,1756985452842,-151.0,0.00014246,2]
[383546088,1756985452851,-151.0,0.00014246,2]
[383546089,1756985452861,-151.0,0.00014246,2]
[383546090,1756985452870,-530.0,0.00014246,2]
[383546091,1756985452879,-151.0,0.00014246,2]
[383546092,1756985452889,-500.0,0.00014246,2]
[383546093,1756985452899,-151.0,0.00014246,2]
[383546094,1756985452911,-480.0,0.00014246,2]
[383546095,1756985452920,-480.0,0.00014246,2]
[383546096,1756985452929,-480.0,0.00014246,2]
[383546097,1756985452938,-480.0,0.00014246,2]
[383546098,1756985452948,-567.39803248,0.00014246,2]
[383546099,1756985452958,-480.0,0.00014246,2]
[383546100,1756985452967,-480.0,0.00014246,2]
[383546101,1756985452977,-480.0,0.00014246,2]
[383546102,1756985452986,-292.41175145,0.00014246,2]
[383546103,1756985452995,-480.0,0.00014246,2]
[383546104,1756985453005,-480.0,0.00014246,2]
[383546105,1756985453015,-480.0,0.00014246,2]
[383546106,1756985453024,-480.0,0.00014246,2]
[383546107,1756985453033,-476.29643955,0.00014246,2]
[383546108,1756985453043,-480.0,0.00014246,2]
[383546109,1756985453052,-480.0,0.00014246,2]
[383546110,1756985453062,-309.94751091,0.00014246,2]
[383546111,1756985453071,-480.0,0.00014246,2]
[383546112,1756985453081,-480.0,0.00014246,2]
[383546113,1756985453091,-579.03739395,0.00014246,2]
[383546114,1756985453100,-480.0,0.00014246,2]
[383546115,1756985453110,-480.0,0.00014246,2]
[383546116,1756985453119,-407.74120864,0.00014246,2]
[383546117,1756985453129,-480.0,0.00014246,2]
[383546118,1756985453138,-554.49,0.00014246,2]
[383546119,1756985453148,-480.0,0.00014246,2]
[383546120,1756985453157,-675.02,0.00014246,2]
[383546121,1756985453166,-820.51,0.00014246,2]
[383546122,1756985453176,-480.0,0.00014246,2]
[383546123,1756985453185,-480.0,0.00014246,2]
[383546124,1756985453195,-480.0,0.00014246,2]
[383546125,1756985453204,-480.0,0.00014246,2]
[383546126,1756985453213,-480.0,0.00014246,2]
[383546127,1756985453223,-414.17713821,0.00014246,2]
[383546128,1756985453232,-480.0,0.00014246,2]
[383546129,1756985453242,-480.0,0.00014246,2]
[383546130,1756985453251,-480.0,0.00014246,2]
[383546131,1756985453260,-222.73,0.00014246,2]
[383546132,1756985453270,-1273.42,0.00014246,2]
[383546133,1756985453279,-480.0,0.00014246,2]
[383546134,1756985453288,-480.0,0.00014246,2]
[383546135,1756985453297,-371.75094622,0.00014246,2]
[383546136,1756985453307,-480.0,0.00014246,2]
[383546137,1756985453316,-480.0,0.00014246,2]
[383546138,1756985453326,-180.62,0.00014246,2]
[383546139,1756985453335,-480.0,0.00014246,2]
[383546140,1756985453344,-480.0,0.00014246,2]
[383546141,1756985453353,-480.0,0.00014246,2]
[383546142,1756985453362,-390.37433585,0.00014246,2]
[383546143,1756985453372,-2489.76,0.00014246,2]
[383546144,1756985453383,-480.0,0.00014246,2]
[383546145,1756985453392,-480.0,0.00014246,2]
[383546146,1756985453401,-480.0,0.00014246,2]
[383546147,1756985453410,-480.0,0.00014246,2]
[383546148,1756985453419,-484.10742305,0.00014246,2]
[383546149,1756985453429,-480.0,0.00014246,2]
[383546150,1756985453438,-486.26,0.00014246,2]
[383546151,1756985453447,-480.0,0.00014246,2]
[383546152,1756985453456,-480.0,0.00014246,2]
[383546153,1756985453466,-480.0,0.00014246,2]
[383546154,1756985453475,-480.0,0.00014246,2]
[383546155,1756985453484,-480.0,0.00014246,2]
[383546156,1756985453493,-480.0,0.00014246,2]
[383546157,1756985453503,-480.0,0.00014246,2]
[383546158,1756985453512,-480.0,0.00014246,2]
[383546159,1756985453521,-480.0,0.00014246,2]
[383546160,1756985453531,-394.85569091,0.00014246,2]
[383546161,1756985454893,-480.0,0.00013698,2]
[383546162,1756985454903,-151.0,0.00013698,2]
[383546163,1756985454913,-176.57110261,0.000139,2]
[383546164,1756985454925,-211.81409269,0.000139,2]
[383546165,1756985454935,-480.0,0.00013972,2]
[383546166,1756985455034,-85.14430909,0.00014246,2]
[383546167,1756985455044,-80.91540788,0.00014246,2]
[383546170,1756985519236,178.36,0.00012329,2]
[383546172,1756985539836,891.84,0.00012329,2]
[383546186,1756985823326,200.0,0.00024921,30]
[383546187,1756985824799,200.0,0.00024921,30]
[383546217,1756986258409,2229.29598614,0.00013002,2]
[383546220,1756986265608,346.65,0.00012329,2]
[383546221,1756986270479,160.0,0.0002,30]
[383546253,1756986632571,-337.07291127,0.00013132,2]
[383546254,1756986632582,-617.99107297,0.00013132,2]
[383546305,1756986638446,-300.40987841,0.00013132,2]
[383546307,1756986638458,-244.52613735,0.00013132,2]
[383546309,1756986638468,-1200.0,0.00013398,2]
[383546323,1756986638587,-1200.0,0.00013399,2]
[383546325,1756986638597,-300.0,0.00013399,2]
[383546327,1756986638606,-300.0,0.00013399,2]
[383546329,1756986638615,-3515.90257877,0.000134,2]
[383546331,1756986638625,-2305.46949662,0.000134,2]
[383546333,1756986638635,-207.61575646,0.00013486,2]
[383546335,1756986638645,-500.0,0.00013486,2]
[383546337,1756986638655,-187.26797644,0.00013486,2]
[383546339,1756986638665,-500.0,0.00013486,2]
[383546341,1756986638674,-300.0,0.00013486,2]
[383546343,1756986638684,-500.0,0.00013486,2]
[383546345,1756986638693,-50000.0,0.00013487,2]
[383546347,1756986638703,-1000.0,0.00013489,2]
[383546349,1756986638712,-1000.0,0.00013489,2]
[383546351,1756986638722,-1000.0,0.00013489,2]
[383546353,1756986638731,-1000.0,0.00013489,2]
[383546355,1756986638741,-1000.0,0.00013489,2]
[383546357,1756986638751,-1000.0,0.00013489,2]
[383546359,1756986638761,-151.0,0.00013489,2]
[383546361,1756986638770,-151.0,0.00013489,2]